Cogmind - Beta 14 @@@ ROGUE MODE // 2024.09.09 @ 12:43:47 Player: Dull Result: Destroyed self with Grenade Launcher Performance ------------- Evolutions (0) 0 Regions Visited (2) 400 Robots Destroyed (26) 130 Value Destroyed (607) 607 Prototype IDs (0) 0 Alien Tech Used (0) 0 Bonus (0) 0 TOTAL SCORE: 1137 Bonus ------- None Cogmind --------- Core Integrity 0/250 Matter 227/300 Energy 98/100 System Corruption 2% Temperature Cool (0) Movement Walking (400) Ox4 Location -10/Mines Parts ------- > --- POWER (1) -------- (None) > --- PROPULSION (2) --- Aluminum Leg Aluminum Leg > --- UTILITY (2) ------ Huge Storage Unit Terrain Scanner (fused) > --- WEAPON (2) ------- Light Cannon > --- INVENTORY (25) --- Ion Engine Light Ion Engine Aluminum Leg Aluminum Leg Aluminum Leg Aluminum Leg Aluminum Leg Aluminum Leg Huge Storage Unit Medium Matter Pod (0) Particle Gun Beam Cannon Light Assault Rifle Light Cannon Light Cannon Light Cannon Light Cannon Light Cannon Light Cannon Light Cannon Light Cannon Bore Cannon Mining Laser Peak State ------------ > --- POWER ------------ Ion Engine > --- PROPULSION ------- Aluminum Leg Aluminum Leg > --- UTILITY ---------- Huge Storage Unit Light Armor Plating > --- WEAPON ----------- Light Assault Rifle Light Assault Rifle > --- INVENTORY -------- Ion Engine Light Ion Engine Aluminum Leg Aluminum Leg Aluminum Leg Huge Storage Unit Terrain Scanner Beam Cannon Light Assault Rifle Light Cannon Light Cannon Light Cannon Light Cannon Light Cannon Light Cannon Light Cannon Light Cannon Light Cannon Grenade Launcher Mining Laser [Rating: 9] Favorites ----------- Power Ion Engine Engine Ion Engine Propulsion Aluminum Leg Treads Light Treads Leg Aluminum Leg Utility Huge Storage Unit Device Terrain Scanner Storage Huge Storage Unit Protection Light Armor Plating Weapon Light Assault Rifle Energy Gun Medium Laser Ballistic Gun Light Assault Rifle Ballistic Cannon Light Cannon Launcher Grenade Launcher Build | -11 -10 -10 ------- Run | Yrd Mat Min Slots Evolved . | . . . Power . | . . . Propulsion . | . . . Utility . | . . . Weapon . | . . . Parts Attached 19 | 2 16 1 Power 2 | . 2 . Engine 2 | . 2 . Core . | . . . Reactor . | . . . Propulsion 6 | 2 4 . Treads 2 | 2 . . Leg 4 | . 4 . Wheel . | . . . Hover . | . . . Flight . | . . . Utility 4 | . 4 . Device 1 | . 1 . Storage 1 | . 1 . Processor . | . . . Hackware . | . . . Protection 2 | . 2 . Artifact . | . . . Weapon 7 | . 6 1 Energy Gun . | . . . Energy Cannon . | . . . Ballistic Gun 3 | . 3 . Ballistic Cannon 2 | . 2 . Launcher 2 | . 1 1 Special Weapon . | . . . Impact Weapon . | . . . Slashing Weapon . | . . . Piercing Weapon . | . . . Special Melee Weapon . | . . . Unidentified Prototypes . | . . . Parts Lost 11 | . 9 2 Power 2 | . 1 1 Propulsion 2 | . 2 . Utility 2 | . 2 . Weapon 5 | . 4 1 Highest Loss Streak 6 | . 6 2 To Critical Strikes . | . . . Average Slot Usage (%) 96 | . 96 98 Engine 13 | . 13 12 Treads 3 | . 3 . Leg 23 | . 23 28 Device 1 | . . 14 Storage 14 | . 14 14 Protection 10 | . 10 . Energy Gun 3 | . 3 . Ballistic Gun 18 | . 19 . Ballistic Cannon 4 | . 4 22 Peak Build Rating 9 | 6 9 9 Average Rating 7 | 6 7 8 On Entrance 7 | 6 6 9 Naked Turns . | . . . Heaviest Build 92 | 12 92 92 Greatest Support 40 | 40 40 20 Greatest Overweight (x) 4 | . 4 4 Average Overweight (x) 2 | . 2 4 Largest Inventory Capacity 25 | 8 25 25 Average Capacity 22 | 8 22 25 Most Carried 23 | 6 22 23 Average Carried 12 | 4 12 22 Final Capacity 25 | 8 25 25 Final Carried 23 | 4 22 23 Class Distribution -------------------- 100% | Mutant Dominant Class ---------------- Mutant | -10/Materials Mutant | -10/Mines Resources | -11 -10 -10 ----------- Run | Yrd Mat Min Matter Collected 643 | 220 368 55 Remotely . | . . . Salvage Created 677 | . 622 55 Parts 47 | . 47 . Haulers Intercepted . | . . . Recyclers Shooed . | . . . Parts Field Recycled . | . . . Retrieved Matter . | . . . Parts Self-Destructed . | . . . Prevented . | . . . Kills | -11 -10 -10 ------- Run | Yrd Mat Min Combat Hostiles Destroyed 32 | . 19 13 Guns 10 | . 10 . Cannons 4 | . 2 2 AOE 18 | . 7 11 Classes Destroyed 7 | . 6 1 Worker 1 | . 1 . Builder 2 | . 2 . Tunneler 1 | . 1 . Watcher 3 | . 3 . Swarmer 6 | . 6 . Grunt 13 | . 13 . Assembled 13 | . . 13 Best Kill Streak 12 | . 11 12 Combat Bots Only 12 | . 8 12 Max Kills in Single Turn 5 | . 4 5 Gunslinging . | . . . Exploded 5 | . 4 5 Melee . | . . . Uniques/NPCs Destroyed . | . . . Combat | -11 -10 -10 -------- Run | Yrd Mat Min Hostile Shots Fired 158 | . 141 17 Missed 40 | . 33 7 Damage Taken 1456 | . 1210 246 Core 266 | . 189 77 Absorbed by Shields . | . . . Core Remaining (%) 100 | 100 . . Volleys Fired 79 | . 65 14 Largest 2 | . 2 2 Hottest 70 | . 70 70 Shots Fired 149 | . 126 23 Gun 115 | . 115 . Cannon 25 | . 8 17 Launcher 9 | . 3 6 Special . | . . . Kinetic 108 | . 91 17 Thermal 32 | . 32 . Explosive 9 | . 3 6 Electromagnetic . | . . . Robot Hit Streak 10 | . 10 5 Robot Miss Streak 3 | . 3 1 Penetration Max . | . . . Secondary Targets 1 | . 1 . Max Gunslinging Chain 1 | . 1 . Shots Hit Robots 99 | . 84 15 Core Hits 76 | . 49 27 Critical Kills . | . . . Critical Parts Destroyed . | . . . Critical Strikes 3 | . 3 . Burn 3 | . 3 . Melee Attacks . | . . . Impact . | . . . Slashing . | . . . Piercing . | . . . Sneak Attacks . | . . . Combat Hostiles . | . . . Follow-up Attacks . | . . . Damage Inflicted 2038 | . 1356 682 Guns 735 | . 735 . Cannons 299 | . 106 193 Explosions 999 | . 510 489 Melee . | . . . Ramming 5 | . 5 . Kinetic 758 | . 565 193 Thermal 276 | . 276 . Explosive 999 | . 510 489 Electromagnetic . | . . . Impact . | . . . Slashing . | . . . Piercing . | . . . Highest Corruption 2 | . 2 2 Average Corruption 2 | . 2 2 Corruption Purged . | . . . Corruption Blocked . | . . . Effects 26 | . 23 3 Message Errors 8 | . 6 2 Matter Fused 6 | . 6 . Heat Flow Errors 3 | . 3 . Energy Discharges 4 | . 4 . Parts Fused 1 | . 1 . Data Loss (minor) 1 | . . 1 Misfires 2 | . 2 . Alerts 1 | . 1 . Overload Shots . | . . . Overflow Damage 52 | . . 52 Projectiles 13 | . . 13 Explosions 39 | . . 39 Melee . | . . . Knockbacks 6 | . 2 4 Impact . | . . . Kinetic 6 | . 2 4 Secondary . | . . . Self-Inflicted Damage 63 | . 13 50 Shots 3 | . 1 2 Rammed . | . . . Targets Rammed 2 | . 2 . Kicked 2 | . 2 . Crushed . | . . . Highest Temperature 435 | . 435 27 Average Temperature 105 | . 115 8 Received Heat Transfer 596 | . 576 20 Effects 4 | . 4 . Interference 3 | . 3 . Matter Decay 1 | . 1 . Siege Activations . | . . . Robots Corrupted . | . . . Combat Hostiles . | . . . Parts Fried . | . . . Impact Corruptions . | . . . Robots Melted . | . . . Combat Hostiles . | . . . Parts Melted 3 | . 3 . Heat Transferred 1036 | . 1036 . Parts Sabotaged . | . . . Parts Stolen . | . . . Parts Stripped . | . . . Power Chain Reactions . | . . . Alert | -11 -10 -10 ------- Run | Yrd Mat Min Peak Influence 246 | . 246 46 Initial 4 | . . 4 Average 95 | . 100 13 Maximum Alert Level 1 | . 1 . Low Security (%) 86 | 100 86 100 Level 1 13 | . 13 . Level 2 . | . . . Level 3 . | . . . Level 4 . | . . . Level 5 . | . . . High Security . | . . . Max Security . | . . . Squads Dispatched 4 | . 4 . Investigation 2 | . 2 . Extermination . | . . . Reinforcement 2 | . 2 . Assault . | . . . Garrison . | . . . Intercept . | . . . Searches Triggered . | . . . Construction Impeded . | . . . Haulers Reinforced . | . . . Active Scanning Responses . | . . . Cargo Convoy Interrupts . | . . . Stealth | -11 -10 -10 --------- Run | Yrd Mat Min Distress Signals 1 | . 1 . Communications Jammed . | . . . Distress Signals . | . . . Times Spotted 44 | . 28 16 Peak Tracking Total 8 | . 8 5 Tactical Retreats 3 | . 2 1 Traps | -11 -10 -10 ------- Run | Yrd Mat Min Traps Triggered 2 | . 2 . Indirectly . | . . . Trap Hack Attempts . | . . . Triggered . | . . . Disarmed . | . . . Reprogrammed . | . . . Reused . | . . . Traps Extracted . | . . . Installed . | . . . Triggered . | . . . Machines | -11 -10 -10 ---------- Run | Yrd Mat Min Machines Disabled . | . . . Max in Single Turn . | . . . Machines Repaired . | . . . Machines Dismantled . | . . . Machines Sabotaged . | . . . Overloaded Fab Kills . | . . . Hacking | -11 -10 -10 --------- Run | Yrd Mat Min Machines Accessed 6 | . 6 . Terminals 6 | . 6 . Fabricators . | . . . Repair Stations . | . . . Recycling Units . | . . . Scanalyzers . | . . . Garrison Access . | . . . Total Hacks 17 | . 17 . Successful 1 | . 1 . Failed 16 | . 16 . Catastrophic 7 | . 7 . Database Lockouts . | . . . Manual 17 | . 17 . Terminals 17 | . 17 . Fabricators . | . . . Repair Stations . | . . . Recycling Units . | . . . Scanalyzers . | . . . Garrison Access . | . . . Terminal Hacks 1 | . 1 . Branch Access Points 1 | . 1 . Fabricator Hacks . | . . . Repair Station Hacks . | . . . Recycling Unit Hacks . | . . . Scanalyzer . | . . . Garrison Access Hacks . | . . . Unauthorized Hacks . | . . . Terminals . | . . . Fabricators . | . . . Repair Stations . | . . . Recycling Units . | . . . Scanalyzers . | . . . Garrison Access . | . . . Data Cores Recovered . | . . . Used . | . . . Hacking Detections 5 | . 5 . Full Trace Events 5 | . 5 . Feedback Events . | . . . Feedback Blocked . | . . . Robot Schematics Acquired . | . . . Robots Built . | . . . Authchips . | . . . Time . | . . . Total Robot Build Rating . | . . . Part Schematics Acquired . | . . . Parts Built . | . . . Authchips . | . . . Time . | . . . Total Part Build Rating . | . . . Parts Repaired . | . . . Time . | . . . Parts Recycled . | . . . Recycled Matter . | . . . Retrieved Matter . | . . . Retrieved Components . | . . . Parts Scanalyzed . | . . . Part Schematics Acquired . | . . . Parts Damaged . | . . . Bothacking | -11 -10 -10 ------------ Run | Yrd Mat Min Used RIF Installer . | . . . Robots Hacked . | . . . Non-combat . | . . . Combat . | . . . Robot Hacks Applied . | . . . Relay Couplers Released . | . . . Fabnet Peak Effective % . | . . . Robots Rewired . | . . . Allies Hacked . | . . . Hacks Repelled . | . . . Allies | -11 -10 -10 -------- Run | Yrd Mat Min Total Allies . | . . . Largest Group . | . . . Highest-Rated Group . | . . . Highest-Rated Ally . | . . . Total Orders . | . . . Ally Attacks . | . . . Total Damage . | . . . Kills . | . . . Allies Corrupted . | . . . Allies Melted . | . . . Intel | -11 -10 -10 ------- Run | Yrd Mat Min Robot Analysis Total . | . . . Derelict Logs Recovered . | . . . Drone Launches . | . . . Drone Recoveries . | . . . Exploration | -11 -10 -10 ------------- Run | Yrd Mat Min Turns Passed 2180 | 14 2072 94 Spaces Moved 580 | 7 562 11 Core . | . . . Treads 153 | 7 146 . Legs 427 | . 416 11 Wheels . | . . . Hover . | . . . Flight . | . . . Fastest Speed 120 | 160 120 400 Average Speed 325 | 160 325 400 Slowest Speed 400 | 160 400 400 Overloaded Moves . | . . . Propulsion Burnouts . | . . . Robots Hopped . | . . . Cave-ins Triggered . | . . . Exploration Rate (%) 33 | 2 91 7 Regions Visited 2 Branch Regions 1 Pre-discovered Areas . | . . . Known Exits Taken 1 | . 1 . Unknown Exits Taken 1 | 1 . . Scrap Searched . | . . . Spaces Dug . | . . . Terrain Destroyed 42 | . 4 38 Melee . | . . . Projectile . | . . . AOE 42 | . 4 38 Terrain Rammed . | . . . Walls Destroyed . | . . . Machines Disabled . | . . . Actions | -11 -10 -10 --------- Run | Yrd Mat Min Total 745 | 10 695 40 Wait 29 | . 16 13 Move 578 | 6 561 11 Hop . | . . . Pick Up 31 | . 30 1 Fast Attach 1 | . 1 . Attach 11 | . 11 . Detach . | . . . Swap 7 | 2 4 1 Drop 7 | 2 5 . Fire 79 | . 65 14 Melee . | . . . Ram . | . . . Kick 2 | . 2 . Crush . | . . . Escape Stasis . | . . . Rewire . | . . . Trap . | . . . Miscellaneous . | . . . Route ------- -11/Scrapyard -10/Materials (discovered 4 exits: [*Mat x3] / *Min) -10/Mines History --------- Turn | Location | Event 5 | -11/Scrapyard | Discovered new exit (range 3) 15 | -11/Scrapyard | Entered Materials 360 | -10/Materials | Build established: Mutant 528 | -10/Materials | Core integrity fell below 50% 548 | -10/Materials | Lost 6 parts (1p2n1u2w) 551 | -10/Materials | Destroyed 8 combat bots 866 | -10/Materials | Discovered new exit (range 12) 1211 | -10/Materials | Discovered new exit (range 16) 1812 | -10/Materials | Discovered new exit (range 6) 1817 | -10/Materials | Lost 3 parts (1u2w) 1925 | -10/Materials | Identified exit to Mines 2087 | -10/Materials | Entered Mines 2088 | -10/Mines | Assembled infested the area 2093 | -10/Mines | Assisted by a Guerilla fighting off Assembled 2142 | -10/Mines | Core integrity fell below 20% 2181 | -10/Mines | Destroyed self with Grenade Launcher Last Messages --------------- 02146_ as-08709 destroyed. 02149_ as-83283 destroyed. 02150_ System corrupted: Component data lost. 02154_ as-30910 knocked back. 02156_ Destroyed Asb. Hover Unit. 02156_ as-30910 knocked back. 02157_ The unstable cave ceiling collapses. 02160_ as-30910 destroyed. 02162_ as-18642 destroyed. 02164_ The unstable cave ceiling collapses. 02165_ Acquired 55 matter. 02169_ The unstable cave ceiling collapses. 02173_ Acquired Bore Cannon. 02177_ The unstable cave ceiling collapses. 02178_ Destroyed Asb. F-torch. 02178_ as-54506 destroyed. 02179_ Ion Engine destroyed. 02181_ as-28889 destroyed. 02181_ Grenade Launcher destroyed. 02181_ Destroyed Grenade Launcher. Map ----- +----------------------------------------------------+ | ?????????????????????????????????????????????????? | | ?????????????????????????????????????????????????? | | ?????????????????????????????????????????????????? | | ?????????????????????????????????????????????????? | | ?????????????????????????????????????????????????? | | ?????????????????????????????????????????????????? | | ?????????????????????????????????????????????????? | | ?????????????????????????????????????????????????? | | ?????????????????????????????????????????????????? | | ?????????????????????????????????????????????????? | | ?????????????????????????????????????????????????? | | ?????????????????????????????????????????????????? | | ?????????????????????#?????????????#?????????????? | | ???????????????????????????????#?????????????????? | | ????????????????????????????#????????????????????? | | ???????????????????#?????#???????????#???????????? | | ??????????????????????????????????#??????????????? | | ???????????????????????????"?#???????????????????? | | ?????????????????????#????????#??????????????????? | | ????????????????#?????? ? ?????????????#?????????? | | ?????????????????????#?? ?????????????##?????????? | | ??????????????????????###++#######?#?????????????? | | ?????????????????????## ##??????????????? | | ?????????????????????# % #??????????????? | | ??????????????????????# % #??????????????? | | ??????????????????????# %@ ##??????????????? | | ?????????????????#????# #????##?????????? | | ??????????????????#???## % #???????????????? | | ??????????????????????# #???????????????? | | ?????????????????????# # ##?#????????????? | | ?????????????????????# #% ## ##?????#?????????? | | ?????????????????????## ####????????????????? | | ??????????????????????# % ????????????????????? | | ????????????????????? ??##???????????????? | | ????????????????????? a ???????????????????? | | ????????????????????#### ??????????????????? | | ????????????????????#?? < ??????????????????? | | ???????????????????????# =?????????????????? | | ??????????????????????? !% ?????????????????? | | ??????????????????????? ???? ??????????????? | | ??????????????????????? ???????????????????? | | ???????????????????????? ????????????????????? | | ?????????????????????????????????????????????????? | | ?????????????????????????????????????????????????? | | ?????????????????????????????????????????????????? | | ?????????????????????????????????????????????????? | | ?????????????????????????????????????????????????? | | ?????????????????????????????????????????????????? | | ?????????????????????????????????????????????????? | | | +----------------------------------------------------+ Best States ------------- Heat Dissipation 25 Energy Generation 10 Energy Capacity 250 Matter Stores 300 Matter Capacity 300 Sight Range 16 Terrain Scan Range 14 Terrain Scan Density 10 Armor Coverage 150 Evasion (%) 55 Recoil Reduction 2 Item Schematics ----------------- None Robot Schematics ------------------ None Fabricated ------------ Nothing Alien Tech Used ----------------- None Achievements -------------- None Challenges ------------ None Game ------ Seed CompositeCobblerInjector Manual? 0 Play Time 00:10:30 Cumulative 31.5 hours Start 2024.09.09 @ 12:34:40 End 2024.09.09 @ 12:43:47 Sessions 1 Manual Loads 0 Difficulty Rogue Special Mode None Game No. 48 Rogue 48 Adventurer 0 Explorer 0 Win Type - Total 0 Types 0/0/0/0/0/0/0/0/0 Lore% 8 Gallery% 33 Achievement% 26 Wizard Run 0 Options --------- Layout 0 ASCII 0 Keyboard 0 Movement Mouse Keybinds 1 Fullscreen 1 Font 18/TerminusBold Map View 76x50 Zoom Use 0% Tactical HUD 1 Map Filters NONE Filters NONE Steam 1 RUN: 71c73fc5-f216-4c61-9115-a3ef52bf64fb